{"text_format":"3","workbook":"xlsx","n_sheets":2,"sheets":["Початок","Рахунок-фактура"],"not_rendered":{"images":1,"defined_names":1},"read":"whole","date_system":"1900"}

{"sheet":"Початок","index":0,"n_rows":8,"n_cols":2,"rows_kept":8}
[null,"ПРО ЦЕЙ ШАБЛОН"]
[null,"Використовуйте цей шаблон, щоб створити рахунок-фактура послуги."]
[null,"Введіть номер рахунка-фактури, дата, назва компанії, адресу, гасло і відомості про отримувача."]
[null,"Введіть відомості в таблиці."]
[null,"Підсумок обчислюється автоматично."]
[null,"Примітка. "]
[null,"Додаткові вказівки наведено в стовпці A на аркуші «РАХУНОК ЗА НАДАНІ ПОСЛУГИ». Цей текст приховано навмисно. Щоб вилучити текст, виберіть стовпець A й натисніть клавішу Delete. Щоб відобразити текст, виберіть стовпець A та змініть колір шрифту."]
[null,"Щоб дізнатися більше про таблиці, натисніть клавіші Shift+F10 у таблиці, виберіть \"Таблиця\", а потім – \"Текст заміщення\"."]

{"sheet":"Рахунок-фактура","index":1,"n_rows":43,"n_cols":5,"rows_kept":43,"merged":[[0,1,0,2],[0,3,0,4],[1,1,1,4],[2,1,2,3],[3,1,3,3],[4,1,4,2],[5,1,5,2],[6,1,6,2],[7,1,7,2],[41,1,41,2],[41,3,41,4],[42,1,42,4]]}
["Створіть рахунок-фактура послуги на цьому аркуші. Додайте емблему компанії у клітинку праворуч, а заголовок аркуша у клітинку D1. Корисні вказівки щодо роботи з цим аркушем наведено в клітинках у цьому стовпці. Подальші вказівки наведено в клітинці A3.","Заповнювач для емблеми наведено в цій клітинці.",null,"РАХУНОК-ФАКТУРА"]
[]
["У клітинку праворуч введіть назву компанії.","Назва компанії"]
["У клітинку праворуч введіть гасло компанії.","Гасло компанії"]
["У клітинку праворуч введіть адресу компанії, а номер рахунка-фактури у клітинку E5.","Поштова адреса",null,"№ РАХУНКА:","Номер"]
["У клітинку праворуч введіть місто, область і поштовий індекс, а дата у клітинку E6.","Місто, область, поштовий індекс",null,"ДАТА ",{"$f":"TODAY()","v":"2019-04-19"}]
["У клітинку праворуч введіть номери телефону й факсу, а ідентифікатор у клітинку E7.","Телефон Факс",null,"ІДЕНТИФІКАТОР КЛІЄНТА ","Ідентифікатор"]
["У клітинку праворуч введіть адресу електронної пошти.","Електронна пошта"]
["Надпис \"Отримувач\" наведено в клітинці праворуч. Введіть такі відомості про отримувача, як ім'я, назва компанії, адреса та номер телефону у клітинки від C9 до C13. Подальші вказівки наведено в клітинці A14.","ОДЕРЖУВАЧ","Ім’я"]
[null,null,"Назва компанії"]
[null,null,"Поштова адреса"]
[null,null,"Місто, область, поштовий індекс"]
[null,null,"Телефон"]
["Введіть інформацію в таблицю \"Відомості про збут\", починаючи з клітинки праворуч. Подальші вказівки наведено в клітинці A17.","ПРОДАВЕЦЬ","ПОСЛУГА","УМОВИ ОПЛАТИ","ТЕРМІН"]
[{"$nulls":3},"Підлягає сплаті відразу після отримання"]
[]
["Введіть інформацію в таблицю \"Рахунок-фактура\", починаючи з клітинки праворуч. Проміжний підсумок і загальний підсумок обчисляться автоматично. Подальші вказівки наведено в клітинці A42.","КІЛЬКІСТЬ","ОПИС","ЦІНА ЗА ОДИНИЦЮ","ЗАГАЛЬНА СУМА В РЯДКУ"]
[{"$nulls":4},{"$f":"IF(SUM(B18)>0,SUM(B18*'Рахунок-фактура'!$D18),\"\")","v":""}]
[{"$nulls":4},{"$f":"IF(SUM(B19)>0,SUM(B19*'Рахунок-фактура'!$D19),\"\")","v":""}]
[{"$nulls":4},{"$f":"IF(SUM(B20)>0,SUM(B20*'Рахунок-фактура'!$D20),\"\")","v":""}]
[{"$nulls":4},{"$f":"IF(SUM(B21)>0,SUM(B21*'Рахунок-фактура'!$D21),\"\")","v":""}]
[{"$nulls":4},{"$f":"IF(SUM(B22)>0,SUM(B22*'Рахунок-фактура'!$D22),\"\")","v":""}]
[{"$nulls":4},{"$f":"IF(SUM(B23)>0,SUM(B23*'Рахунок-фактура'!$D23),\"\")","v":""}]
[{"$nulls":4},{"$f":"IF(SUM(B24)>0,SUM(B24*'Рахунок-фактура'!$D24),\"\")","v":""}]
[{"$nulls":4},{"$f":"IF(SUM(B25)>0,SUM(B25*'Рахунок-фактура'!$D25),\"\")","v":""}]
[{"$nulls":4},{"$f":"IF(SUM(B26)>0,SUM(B26*'Рахунок-фактура'!$D26),\"\")","v":""}]
[{"$nulls":4},{"$f":"IF(SUM(B27)>0,SUM(B27*'Рахунок-фактура'!$D27),\"\")","v":""}]
[{"$nulls":4},{"$f":"IF(SUM(B28)>0,SUM(B28*'Рахунок-фактура'!$D28),\"\")","v":""}]
[{"$nulls":4},{"$f":"IF(SUM(B29)>0,SUM(B29*'Рахунок-фактура'!$D29),\"\")","v":""}]
[{"$nulls":4},{"$f":"IF(SUM(B30)>0,SUM(B30*'Рахунок-фактура'!$D30),\"\")","v":""}]
[{"$nulls":4},{"$f":"IF(SUM(B31)>0,SUM(B31*'Рахунок-фактура'!$D31),\"\")","v":""}]
[{"$nulls":4},{"$f":"IF(SUM(B32)>0,SUM(B32*'Рахунок-фактура'!$D32),\"\")","v":""}]
[{"$nulls":4},{"$f":"IF(SUM(B33)>0,SUM(B33*'Рахунок-фактура'!$D33),\"\")","v":""}]
[{"$nulls":4},{"$f":"IF(SUM(B34)>0,SUM(B34*'Рахунок-фактура'!$D34),\"\")","v":""}]
[{"$nulls":4},{"$f":"IF(SUM(B35)>0,SUM(B35*'Рахунок-фактура'!$D35),\"\")","v":""}]
[{"$nulls":4},{"$f":"IF(SUM(B36)>0,SUM(B36*'Рахунок-фактура'!$D36),\"\")","v":""}]
[{"$nulls":4},{"$f":"IF(SUM(B37)>0,SUM(B37*'Рахунок-фактура'!$D37),\"\")","v":""}]
[{"$nulls":3},"ПРОМІЖНИЙ ПІДСУМОК",{"$f":"IF(SUM(E18:E37)>0,SUM(E18:E37),\"\")","v":""}]
[{"$nulls":3},"ПОДАТОК З ОБОРОТУ"]
[{"$nulls":3},"ПІДСУМОК",{"$f":"IF(SUM(E38)>0,SUM((E38*E39)+E38),\"\")","v":""}]
[]
["Назва компанії автоматично оновлюється в клітинці D42.","Одержувач платежу",null,{"$f":"B3","v":"Назва компанії"}]
["Подяка наведена в клітинці праворуч.","ДЯКУЄМО ЗА СПІВПРАЦЮ!"]